lending/lending_fUSD_20250121
["ID","MTS","AMOUNT","RATE_DAILY","PERIOD"]
[349868819,1737468646413,-500.0,0.00020993,2]
[349868820,1737468646422,-500.0,0.00020993,2]
[349868821,1737468646431,-500.0,0.00020993,2]
[349868822,1737468646440,-35.01202676,0.00020993,2]
[349868823,1737468646456,-482.805228,0.00019847,2]
[349868824,1737468646466,-464.98797324,0.00020993,2]
[349868825,1737468646475,-501.64,0.00020994,2]
[349868826,1737468646485,-500.0,0.00020994,2]
[349868827,1737468646498,-3077.10002001,0.00020995,2]
[349868828,1737468646507,-1078.8,0.00020995,2]
[349868829,1737468646516,-500.0,0.00020999,2]
[349868830,1737468646526,-999.0,0.00020999,2]
[349868831,1737468646537,-108000.12867086,0.00021,15]
[349868859,1737469117697,191.04,0.00010137,2]
[349868863,1737469449030,219.84,0.00019321,30]
[349868864,1737469449369,219.84,0.00021905,30]
[349868865,1737469639110,150.0,0.00024,120]
[349868884,1737469831814,-191.04,0.00016813,2]
[349868885,1737469831824,-538.56,0.0001748,2]
[349868886,1737469831833,-1000.0,0.00019033,2]
[349868887,1737469831843,-500.0,0.000191,2]
[349868888,1737469831857,-200.0,0.00019101,2]
[349868889,1737469831867,-171.18,0.00019147,2]
[349868890,1737469831876,-156.22,0.00019152,2]
[349868891,1737469831886,-404.69013722,0.00019164,2]
[349868892,1737469831897,-207.0,0.0001919,2]
[349868893,1737469831906,-250.0,0.00019458,2]
[349868894,1737469831916,-372.855,0.00019458,2]
[349868895,1737469831925,-207.0,0.0001953,2]
[349868896,1737469831935,-500.0,0.00019573,2]
[349868897,1737469831944,-500.0,0.00019573,2]
[349868898,1737469831954,-500.0,0.00019573,2]
[349868899,1737469831963,-500.0,0.00019573,2]
[349868900,1737469831972,-262.99466134,0.00019573,2]
[349868901,1737469831982,-175.49556184,0.00019573,2]
[349868902,1737469831991,-500.0,0.00019573,2]
[349868903,1737469832000,-500.0,0.00019573,2]
[349868904,1737469832011,-500.0,0.00019573,2]
[349868905,1737469832020,-500.0,0.00019573,2]
[349868906,1737469832030,-500.0,0.00019573,2]
[349868907,1737469832040,-500.0,0.00019573,2]
[349868908,1737469832050,-500.0,0.00019573,2]
[349868909,1737469832059,-500.0,0.00019573,2]
[349868910,1737469832069,-500.0,0.00019573,2]
[349868911,1737469832079,-500.0,0.00019573,2]
[349868912,1737469832088,-500.0,0.00019573,2]
[349868913,1737469832096,-500.0,0.00019573,2]
[349868914,1737469832106,-500.0,0.00019573,2]
[349868915,1737469832116,-500.0,0.00019573,2]
[349868916,1737469832125,-500.0,0.00019573,2]
[349868917,1737469832135,-500.0,0.00019573,2]
[349868918,1737469832144,-500.0,0.00019573,2]
[349868919,1737469832154,-500.0,0.00019573,2]
[349868920,1737469832163,-500.0,0.00019573,2]
[349868922,1737469832174,-500.0,0.00019573,2]
[349868924,1737469832183,-500.0,0.00019573,2]
[349868926,1737469832193,-500.0,0.00019573,2]
[349868928,1737469832202,-500.0,0.00019573,2]
[349868930,1737469832212,-500.0,0.00019573,2]
[349868931,1737469832221,-500.0,0.00019573,2]
[349868932,1737469832231,-318.56203016,0.00019573,2]
[349868933,1737469832253,-181.43796984,0.00019573,2]
[349868934,1737469832263,-500.0,0.00019573,2]
[349868935,1737469832273,-500.0,0.00019573,2]
[349868936,1737469832283,-799.72,0.00019573,2]
[349868937,1737469832294,-500.0,0.00019573,2]
[349868938,1737469832307,-500.0,0.00019573,2]
[349868939,1737469832317,-243.84205016,0.000196,2]
[349868940,1737469832338,-194.33794984,0.000196,2]
[349868941,1737469832348,-226.02205016,0.000196,2]
[349868946,1737469837841,-457.42794984,0.000196,2]
[349868947,1737469837851,-1545.94,0.000196,2]
[349868948,1737469837865,-538.56,0.00019744,2]
[349868949,1737469837874,-298.01,0.000198,2]
[349868950,1737469837884,-875.42,0.000198,2]
[349868951,1737469837895,-150.0,0.000198,2]
[349868952,1737469837905,-150.0,0.000198,2]
[349868953,1737469837915,-150.0,0.000198,2]
[349868954,1737469837925,-437.71,0.000198,2]
[349868955,1737469837935,-150.0,0.000198,2]
[349868956,1737469837945,-150.0,0.000198,2]
[349868957,1737469837955,-150.0,0.000198,2]
[349868958,1737469837964,-150.0,0.000198,2]
[349868959,1737469837974,-150.0,0.000198,2]
[349868960,1737469837984,-300.0,0.000198,2]
[349868961,1737469837993,-150.0,0.000198,2]
[349868962,1737469838003,-150.0,0.000198,2]
[349868963,1737469838013,-437.71,0.000198,2]
[349868964,1737469838024,-150.0,0.000198,2]
[349868965,1737469838034,-298.01,0.000198,2]
[349868966,1737469838044,-150.0,0.000198,2]
[349868967,1737469838056,-500.0,0.00019847,2]
[349868968,1737469838066,-500.0,0.00019847,2]
[349868969,1737469838076,-196.70759816,0.00019847,2]
[349868970,1737469838086,-500.0,0.00019847,2]
[349868971,1737469838095,-500.0,0.00019847,2]
[349868972,1737469838105,-500.0,0.00019847,2]
[349868973,1737469838115,-500.0,0.00019847,2]
[349868974,1737469838125,-500.0,0.00019847,2]
[349868975,1737469838135,-500.0,0.00019847,2]
[349868976,1737469838144,-500.0,0.00019847,2]
[349868977,1737469838155,-500.0,0.00019847,2]
[349868978,1737469838164,-500.0,0.00019847,2]
[349868979,1737469838174,-500.0,0.00019847,2]
[349868980,1737469838183,-500.0,0.00019847,2]
[349868981,1737469838193,-500.0,0.00019847,2]
[349868982,1737469838203,-500.0,0.00019847,2]
[349868983,1737469838213,-314.504452,0.00019847,2]
[349868984,1737469838225,-185.495548,0.00019847,2]
[349868985,1737469838235,-500.0,0.00019847,2]
[349868986,1737469838244,-500.0,0.00019847,2]
[349868987,1737469838254,-500.0,0.00019847,2]
[349868988,1737469838264,-500.0,0.00019847,2]
[349868989,1737469838274,-500.0,0.00019847,2]
[349868990,1737469838284,-315.02749374,0.00019847,2]
[349868991,1737469838296,-184.97250626,0.00019847,2]
[349868992,1737469838308,-500.0,0.00019847,2]
[349868993,1737469838318,-500.0,0.00019847,2]
[349868994,1737469838327,-500.0,0.00019847,2]
[349868995,1737469838337,-500.0,0.00019847,2]
[349868996,1737469838348,-500.0,0.00019847,2]
[349868997,1737469838358,-500.0,0.00019847,2]
[349868998,1737469838368,-799.72,0.00019847,2]
[349868999,1737469838378,-500.0,0.00019847,2]
[349869000,1737469838388,-467.77731775,0.00019847,2]
[349869001,1737469838398,-150.0,0.00019878,2]
[349869002,1737469838408,-300.0,0.00019878,2]
[349869003,1737469838418,-429.14,0.00019878,2]
[349869004,1737469838427,-207.0,0.0001988,2]
[349869005,1737469838437,-8588.15640047,0.00019896,2]
[349869006,1737469838462,-377.21328428,0.00019896,2]
[349869007,1737469838483,-47676.76089021,0.00019896,2]
[349869008,1737469838495,-1503.88525785,0.00019896,2]
[349869009,1737469838506,-353.3364282,0.00019896,2]
[349869010,1737469838519,-611.33262722,0.00019896,2]
[349869011,1737469838531,-15548.51445513,0.00019896,2]
[349869012,1737469838542,-500.0,0.00019896,2]
[349869013,1737469838552,-500.0,0.00019896,2]
[349869014,1737469838563,-500.0,0.00019896,2]
[349869015,1737469838573,-500.0,0.00019896,2]
[349869016,1737469838583,-500.0,0.00019896,2]
[349869017,1737469838594,-500.0,0.00019896,2]
[349869018,1737469838604,-500.0,0.00019896,2]
[349869019,1737469838614,-500.0,0.00019896,2]
[349869020,1737469838624,-500.0,0.00019896,2]
[349869021,1737469838634,-500.0,0.00019896,2]
[349869022,1737469838644,-205.06011567,0.000199,2]
[349869023,1737469838654,-610.92,0.00019999,2]
[349869024,1737469838664,-544.81,0.00019999,2]
[349869025,1737469838674,-500.0,0.00019999,2]
[349869026,1737469838684,-1459.51,0.00019999,2]
[349869027,1737469838694,-500.0,0.00019999,2]
[349869028,1737469838704,-778.1,0.00019999,2]
[349869029,1737469838714,-1715.42,0.00019999,2]
[349869030,1737469838723,-500.0,0.00019999,2]
[349869031,1737469838733,-1536.19,0.00019999,2]
[349869032,1737469838743,-805.08,0.00019999,2]
[349869033,1737469838752,-500.0,0.00019999,2]
[349869035,1737469838762,-1020.7,0.00019999,2]
[349869037,1737469838772,-812.17,0.00019999,2]
[349869040,1737469838783,-1722.63,0.00019999,2]
[349869042,1737469838793,-1905.22,0.00019999,2]
[349869044,1737469838802,-500.0,0.00019999,2]
[349869046,1737469838814,-536.24,0.00019999,2]
[349869047,1737469838824,-500.0,0.00019999,2]
[349869049,1737469838832,-1633.66,0.00019999,2]
[349869051,1737469838842,-500.0,0.00019999,2]
[349869053,1737469838852,-500.0,0.00019999,2]
[349869054,1737469838865,-500.0,0.00019999,2]
[349869055,1737469838874,-500.0,0.00019999,2]
[349869056,1737469838884,-500.0,0.00019999,2]
[349869057,1737469838894,-500.0,0.00019999,2]
[349869058,1737469838904,-500.0,0.00019999,2]
[349869059,1737469838914,-500.0,0.00019999,2]
[349869060,1737469838924,-500.0,0.00019999,2]
[349869061,1737469838933,-1153.1,0.00019999,2]
[349869062,1737469838946,-1763.97,0.00019999,2]
[349869063,1737469838957,-500.0,0.00019999,2]
[349869064,1737469838967,-500.0,0.00019999,2]
[349869065,1737469838976,-500.0,0.00019999,2]
[349869066,1737469838986,-500.0,0.00019999,2]
[349869067,1737469838995,-500.0,0.00019999,2]
[349869068,1737469839005,-500.0,0.00019999,2]
[349869069,1737469839015,-834.7,0.00019999,2]
[349869070,1737469839024,-500.0,0.00019999,2]
[349869071,1737469839035,-17496.2209109,0.0002,4]
[349869072,1737469839045,-9999.99,0.0002,2]
[349869073,1737469839055,-9999.99,0.0002,2]
[349869074,1737469839065,-15643.70173445,0.0002,2]
[349869075,1737469839074,-45674.48874322,0.0002,2]
[349869076,1737469839083,-9119.98413991,0.0002,2]
[349869077,1737469839092,-27943.76355345,0.0002,2]
[349869078,1737469839101,-150.0,0.00020007,2]
[349869079,1737469839110,-12500.0,0.00020052,2]
[349869080,1737469839119,-309.46528952,0.00020069,2]
[349869081,1737469839129,-150.11402704,0.00020069,2]
[349869082,1737469839139,-5000.0,0.0002007,2]
[349869083,1737469839148,-500.0,0.00020121,2]
[349869084,1737469839157,-500.0,0.00020121,2]
[349869085,1737469839166,-500.0,0.00020121,2]
[349869086,1737469839175,-500.0,0.00020121,2]
[349869087,1737469839185,-500.0,0.00020121,2]
[349869088,1737469839194,-500.0,0.00020121,2]
[349869089,1737469839203,-500.0,0.00020121,2]
[349869090,1737469839212,-500.0,0.00020121,2]
[349869091,1737469839221,-500.0,0.00020121,2]
[349869092,1737469839231,-500.0,0.00020121,2]
[349869093,1737469839240,-500.0,0.00020121,2]
[349869094,1737469839250,-500.0,0.00020121,2]
[349869095,1737469839260,-500.0,0.00020121,2]
[349869096,1737469839271,-500.0,0.00020121,2]
[349869097,1737469839282,-500.0,0.00020121,2]
[349869098,1737469839292,-500.0,0.00020121,2]
[349869099,1737469839301,-500.0,0.00020121,2]
[349869100,1737469839316,-500.0,0.00020121,2]
[349869101,1737469839330,-500.0,0.00020121,2]
[349869102,1737469839339,-500.0,0.00020121,2]
[349869103,1737469839348,-500.0,0.00020121,2]
[349869104,1737469839359,-500.0,0.00020121,2]
[349869105,1737469839370,-500.0,0.00020121,2]
[349869106,1737469839381,-500.0,0.00020121,2]
[349869107,1737469839391,-500.0,0.00020121,2]
[349869108,1737469839401,-500.0,0.00020121,2]
[349869109,1737469839410,-500.0,0.00020121,2]
[349869110,1737469839420,-500.0,0.00020121,2]
[349869111,1737469839429,-799.72,0.00020121,2]
[349869112,1737469839439,-500.0,0.00020121,2]
[349869113,1737469839448,-500.0,0.00020169,2]
[349869114,1737469839459,-500.0,0.00020169,2]
[349869115,1737469839468,-500.0,0.00020169,2]
[349869116,1737469839478,-500.0,0.00020169,2]
[349869117,1737469839487,-500.0,0.00020169,2]
[349869118,1737469839497,-500.0,0.00020169,2]
[349869119,1737469839507,-500.0,0.00020169,2]
[349869120,1737469839517,-500.0,0.00020169,2]
[349869121,1737469839528,-500.0,0.00020169,2]
[349869122,1737469839537,-500.0,0.00020169,2]
[349869124,1737469839547,-500.0,0.00020169,2]
[349869126,1737469839559,-500.0,0.00020169,2]
[349869128,1737469839569,-500.0,0.00020169,2]
[349869130,1737469839579,-500.0,0.00020169,2]
[349869132,1737469839590,-500.0,0.00020169,2]
[349869134,1737469839600,-500.0,0.00020169,2]
[349869136,1737469839611,-500.0,0.00020169,2]
[349869138,1737469839621,-611.64044305,0.00020169,2]
[349869139,1737469839631,-500.0,0.00020169,2]
[349869140,1737469839642,-500.0,0.00020169,2]
[349869141,1737469839653,-500.0,0.00020169,2]
[349869142,1737469839663,-500.0,0.00020169,2]
[349869143,1737469839673,-500.0,0.00020169,2]
[349869144,1737469839683,-500.0,0.00020169,2]
[349869146,1737469839694,-500.0,0.00020169,2]
[349869148,1737469839704,-500.0,0.00020169,2]
[349869149,1737469839714,-500.0,0.00020169,2]
[349869150,1737469839725,-479.393064,0.00020169,2]
[349869151,1737469839736,-500.0,0.00020169,2]
[349869152,1737469839746,-500.0,0.00020169,2]
[349869153,1737469839755,-500.0,0.00020169,2]
[349869154,1737469839766,-500.0,0.00020169,2]
[349869155,1737469839776,-417.332555,0.00020169,2]
[349869156,1737469839786,-500.0,0.00020169,2]
[349869157,1737469839796,-500.0,0.00020169,2]
[349869158,1737469839810,-500.0,0.00020169,2]
[349869159,1737469839820,-500.0,0.00020169,2]
[349869160,1737469839831,-500.0,0.00020169,2]
[349869161,1737469839841,-500.0,0.00020169,2]
[349869162,1737469839855,-164.93225,0.00020169,2]
[349869163,1737469839865,-500.0,0.00020169,2]
[349869164,1737469839875,-500.0,0.00020169,2]
[349869165,1737469839885,-500.0,0.00020169,2]
[349869166,1737469839895,-500.0,0.00020169,2]
[349869167,1737469839907,-154.438351,0.00020169,2]
[349869168,1737469839917,-500.0,0.00020169,2]
[349869169,1737469839928,-500.0,0.00020169,2]
[349869170,1737469839938,-500.0,0.00020169,2]
[349869171,1737469839948,-500.0,0.00020169,2]
[349869172,1737469839957,-500.0,0.00020169,2]
[349869173,1737469839967,-500.0,0.00020169,2]
[349869174,1737469839977,-500.0,0.00020169,2]
[349869175,1737469839987,-500.0,0.00020169,2]
[349869176,1737469839997,-500.0,0.00020169,2]
[349869177,1737469840006,-500.0,0.00020169,2]
[349869178,1737469840015,-500.0,0.00020169,2]
[349869179,1737469840024,-154.43835,0.00020169,2]
[349869180,1737469840038,-500.0,0.00020169,2]
[349869181,1737469840048,-164.932247,0.00020169,2]
[349869182,1737469840059,-598.36,0.00020169,2]
[349869183,1737469840068,-616.29,0.00020169,2]
[349869184,1737469840078,-500.0,0.00020169,2]
[349869185,1737469840087,-500.0,0.00020169,2]
[349869186,1737469840096,-500.0,0.00020169,2]
[349869187,1737469840105,-500.0,0.00020169,2]
[349869188,1737469840114,-559.25,0.00020169,2]
[349869189,1737469840125,-500.0,0.00020169,2]
[349869190,1737469840135,-1214.03,0.00020169,2]
[349869191,1737469840144,-567.08,0.00020169,2]
[349869192,1737469840154,-648.79,0.00020169,2]
[349869193,1737469840163,-164.932246,0.00020169,2]
[349869194,1737469840173,-500.0,0.00020169,2]
[349869195,1737469840183,-500.0,0.00020169,2]
[349869196,1737469840192,-1233.53,0.00020169,2]
[349869197,1737469840202,-500.0,0.00020169,2]
[349869198,1737469840212,-574.4,0.00020169,2]
[349869199,1737469840223,-500.0,0.00020169,2]
[349869200,1737469840232,-500.0,0.00020169,2]
[349869201,1737469840242,-828.36,0.00020169,2]
[349869202,1737469840252,-848.79,0.00020169,2]
[349869203,1737469840262,-154.43835,0.00020169,2]
[349869204,1737469840273,-536.49,0.00020169,2]
[349869205,1737469840283,-1724.63,0.00020169,2]
[349869206,1737469840293,-1712.63,0.00020169,2]
[349869207,1737469840302,-500.0,0.00020169,2]
[349869208,1737469840315,-500.0,0.00020169,2]
[349869209,1737469840325,-443.68351525,0.00020169,2]
[349869210,1737469840334,-2174.49,0.00020169,2]
[349869211,1737469840344,-663.75,0.00020169,2]
[349869212,1737469840354,-500.0,0.00020169,2]
[349869213,1737469840363,-791.22,0.00020169,2]
[349869214,1737469840373,-500.0,0.00020169,2]
[349869215,1737469840383,-500.0,0.00020169,2]
[349869216,1737469840392,-1304.64,0.00020169,2]
[349869217,1737469840402,-500.0,0.00020169,2]
[349869218,1737469840412,-1054.06,0.00020169,2]
[349869219,1737469840421,-500.0,0.00020169,2]
[349869220,1737469840431,-500.0,0.00020169,2]
[349869221,1737469840441,-1899.13,0.00020169,2]
[349869222,1737469840451,-500.0,0.00020169,2]
[349869223,1737469840459,-502.29,0.00020169,2]
[349869224,1737469840469,-964.77,0.00020169,2]
[349869225,1737469840478,-500.0,0.00020169,2]
[349869226,1737469840488,-1792.84,0.00020169,2]
[349869227,1737469840498,-1468.81,0.00020169,2]
[349869228,1737469840507,-500.0,0.00020169,2]
[349869229,1737469840516,-500.0,0.00020169,2]
[349869230,1737469840526,-500.0,0.00020169,2]
[349869231,1737469840536,-3111.72,0.00020169,2]
[349869232,1737469840545,-2795.57,0.00020169,2]
[349869233,1737469840554,-500.0,0.00020169,2]
[349869234,1737469840565,-2035.31,0.00020169,2]
[349869235,1737469840575,-500.0,0.00020169,2]
[349869236,1737469840585,-1172.21,0.00020169,2]
[349869237,1737469840594,-644.78,0.00020169,2]
[349869238,1737469840603,-2922.63,0.00020169,2]
[349869239,1737469840612,-702.35,0.00020169,2]
[349869240,1737469840622,-500.0,0.00020169,2]
[349869241,1737469840631,-959.96,0.00020169,2]
[349869242,1737469840641,-500.0,0.00020169,2]
[349869243,1737469840650,-500.0,0.00020169,2]
[349869244,1737469840660,-500.0,0.00020169,2]
[349869245,1737469840669,-500.0,0.00020169,2]
[349869246,1737469840679,-500.0,0.00020169,2]
[349869247,1737469840688,-1037.45,0.00020169,2]
[349869248,1737469840697,-500.0,0.00020169,2]
[349869249,1737469840707,-500.0,0.00020169,2]
[349869250,1737469840717,-4997.02,0.00020169,2]
[349869251,1737469840726,-500.0,0.00020169,2]
[349869252,1737469840736,-500.0,0.00020169,2]
[349869253,1737469840746,-500.0,0.00020169,2]
[349869254,1737469840755,-557.82,0.00020169,2]
[349869255,1737469840765,-500.0,0.00020169,2]
[349869256,1737469840775,-3920.18,0.00020169,2]
[349869257,1737469840785,-523.2,0.00020169,2]
[349869258,1737469840795,-1283.23,0.00020169,2]
[349869259,1737469840804,-500.0,0.00020169,2]
[349869260,1737469840816,-500.0,0.00020169,2]
[349869261,1737469840826,-500.0,0.00020169,2]
[349869262,1737469840835,-1365.54,0.00020169,2]
[349869263,1737469840845,-500.0,0.00020169,2]
[349869264,1737469840855,-500.0,0.00020169,2]
[349869265,1737469840870,-509.28,0.00020169,2]
[349869266,1737469840879,-500.0,0.00020169,2]
[349869267,1737469840889,-500.0,0.00020169,2]
[349869268,1737469840899,-500.0,0.00020169,2]
[349869269,1737469840908,-500.0,0.00020169,2]
[349869270,1737469840918,-970.14,0.00020169,2]
[349869271,1737469840927,-3541.98,0.00020169,2]
[349869272,1737469840938,-500.0,0.00020169,2]
[349869273,1737469840947,-624.37784613,0.00020169,2]
[349869274,1737469840957,-500.0,0.00020169,2]
[349869275,1737469840966,-500.0,0.00020169,2]
[349869276,1737469840976,-1205.62,0.00020169,2]
[349869277,1737469840986,-500.0,0.00020169,2]
[349869278,1737469840996,-736.99,0.00020169,2]
[349869279,1737469841006,-944.97,0.00020169,2]
[349869280,1737469841015,-684.08,0.00020169,2]
[349869281,1737469841024,-4496.12,0.00020169,2]
[349869282,1737469841034,-500.0,0.00020169,2]
[349869283,1737469841045,-500.0,0.00020169,2]
[349869284,1737469841054,-500.0,0.00020169,2]
[349869285,1737469841067,-500.0,0.00020169,2]
[349869286,1737469841076,-500.0,0.00020169,2]
[349869287,1737469841086,-669.93,0.00020169,2]
[349869288,1737469841096,-1368.18,0.00020169,2]
[349869289,1737469841105,-2854.62,0.00020169,2]
[349869290,1737469841115,-500.0,0.00020169,2]
[349869291,1737469841124,-500.0,0.0002017,2]
[349869292,1737469841134,-500.0,0.0002017,2]
[349869293,1737469841143,-500.0,0.0002017,2]
[349869294,1737469841152,-500.0,0.0002017,2]
[349869295,1737469841162,-500.0,0.0002017,2]
[349869296,1737469841171,-500.0,0.0002017,2]
[349869297,1737469841182,-648.05701888,0.0002017,2]
[349869298,1737469841192,-150.0,0.00020188,2]
[349869299,1737469841202,-1691.0,0.000202,2]
[349869300,1737469841211,-150.0,0.000202,2]
[349869301,1737469841221,-207.0,0.0002023,2]
[349869302,1737469841231,-610.92,0.00020273,2]
[349869303,1737469841241,-544.81,0.00020273,2]
[349869304,1737469841250,-500.0,0.00020273,2]
[349869305,1737469841260,-1459.51,0.00020273,2]
[349869306,1737469841269,-500.0,0.00020273,2]
[349869307,1737469841278,-778.1,0.00020273,2]
[349869308,1737469841288,-1715.42,0.00020273,2]
[349869309,1737469841297,-500.0,0.00020273,2]
[349869310,1737469841309,-1536.19,0.00020273,2]
[349869311,1737469841319,-805.08,0.00020273,2]
[349869312,1737469841328,-500.0,0.00020273,2]
[349869313,1737469841339,-1020.7,0.00020273,2]
[349869314,1737469841349,-812.17,0.00020273,2]
[349869315,1737469841358,-1722.63,0.00020273,2]
[349869316,1737469841367,-1905.22,0.00020273,2]
[349869317,1737469841376,-500.0,0.00020273,2]
[349869318,1737469841386,-536.24,0.00020273,2]
[349869319,1737469841395,-500.0,0.00020273,2]
[349869320,1737469841405,-1633.66,0.00020273,2]
[349869321,1737469841414,-500.0,0.00020273,2]
[349869322,1737469841423,-500.0,0.00020273,2]
[349869323,1737469841433,-500.0,0.00020273,2]
[349869324,1737469841441,-500.0,0.00020273,2]
[349869325,1737469841451,-500.0,0.00020273,2]
[349869326,1737469841460,-500.0,0.00020273,2]
[349869327,1737469841469,-500.0,0.00020273,2]
[349869328,1737469841479,-500.0,0.00020273,2]
[349869329,1737469841488,-1153.1,0.00020273,2]
[349869330,1737469841498,-1763.97,0.00020273,2]
[349869331,1737469841506,-500.0,0.00020273,2]
[349869332,1737469841515,-500.0,0.00020273,2]
[349869333,1737469841524,-500.0,0.00020273,2]
[349869334,1737469841533,-500.0,0.00020273,2]
[349869335,1737469841542,-500.0,0.00020273,2]
[349869336,1737469841551,-500.0,0.00020273,2]
[349869337,1737469841563,-834.7,0.00020273,2]
[349869338,1737469841572,-500.0,0.00020273,2]
[349869339,1737469841585,-150.11402701,0.00020277,2]
[349869340,1737469841594,-4143.9329,0.00020295,2]
[349869341,1737469841603,-309.46528946,0.00020298,2]
[349869342,1737469841613,-150.0,0.00020344,2]
[349869343,1737469841623,-500.0,0.00020395,2]
[349869344,1737469841633,-500.0,0.00020395,2]
[349869345,1737469841642,-500.0,0.00020395,2]
[349869346,1737469841651,-500.0,0.00020395,2]
[349869347,1737469841661,-500.0,0.00020395,2]
[349869348,1737469841671,-500.0,0.00020395,2]
[349869349,1737469841681,-500.0,0.00020395,2]
[349869350,1737469841690,-500.0,0.00020395,2]
[349869351,1737469841699,-500.0,0.00020395,2]
[349869354,1737469841709,-500.0,0.00020395,2]
[349869355,1737469841718,-500.0,0.00020395,2]
[349869356,1737469841728,-500.0,0.00020395,2]
[349869359,1737469841738,-192.31082263,0.00020395,2]
[349869361,1737469841748,-500.0,0.00020395,2]
[349869364,1737469841759,-500.0,0.00020395,2]
[349869365,1737469841769,-500.0,0.00020395,2]
[349869366,1737469841779,-500.0,0.00020395,2]
[349869367,1737469841790,-500.0,0.00020395,2]
[349869368,1737469841800,-500.0,0.00020395,2]
[349869369,1737469841811,-500.0,0.00020395,2]
[349869370,1737469841821,-500.0,0.00020395,2]
[349869371,1737469841831,-500.0,0.00020395,2]
[349869372,1737469841842,-73.47204583,0.00020395,2]
[349869373,1737469841868,-426.52795417,0.00020395,2]
[349869374,1737469841878,-500.0,0.00020395,2]
[349869375,1737469841887,-500.0,0.00020395,2]
[349869376,1737469841899,-500.0,0.00020395,2]
[349869377,1737469841910,-500.0,0.00020395,2]
[349869378,1737469841920,-500.0,0.00020395,2]
[349869379,1737469841931,-799.72,0.00020395,2]
[349869380,1737469841942,-500.0,0.00020395,2]
[349869381,1737469841953,-150.0,0.00020421,2]
[349869382,1737469841963,-500.0,0.00020442,2]
[349869383,1737469841973,-500.0,0.00020442,2]
[349869384,1737469842167,-517.98,0.00020442,2]
[349869385,1737469842178,-794.23,0.00020442,2]
[349869386,1737469842189,-500.0,0.00020442,2]
[349869387,1737469842199,-1032.3,0.00020442,2]
[349869388,1737469842209,-500.0,0.00020442,2]
[349869389,1737469842219,-638.72,0.00020442,2]
[349869390,1737469842230,-587.73,0.00020442,2]
[349869391,1737469842240,-1000.0,0.00020442,2]
[349869392,1737469842250,-714.98,0.00020442,2]
[349869393,1737469842259,-500.0,0.00020442,2]
[349869394,1737469842269,-734.24,0.00020442,2]
[349869395,1737469842279,-500.0,0.00020443,2]
[349869396,1737469842289,-500.0,0.00020443,2]
[349869397,1737469842299,-500.0,0.00020443,2]
[349869398,1737469842308,-500.0,0.00020443,2]
[349869399,1737469842318,-500.0,0.00020443,2]
[349869400,1737469842327,-500.0,0.00020443,2]
[349869401,1737469842337,-500.0,0.00020443,2]
[349869402,1737469842346,-500.0,0.00020443,2]